bitfinex/quotes_SOLUSD_20220101
["timestamp","ask_amount","ask_price","bid_price","bid_amount"]
[1641034154119,30.38467384,172.21,172.16,8.9721]
[1641034155341,30.38467384,172.21,172.16,9.4721]
[1641034155539,30.38467384,172.21,172.16,8.9721]
[1641034158738,1.65021526,172.25,172.16,8.9721]
[1641034158939,1.65021526,172.25,172.16,9.4721]
[1641034159740,32.17113714,172.24,172.16,9.4721]
[1641034160645,32.17113714,172.24,172.16,8.9721]
[1641034161044,32.17113714,172.24,172.16,9.4721]
[1641034161541,32.17113714,172.24,172.16,8.9721]
[1641034164648,33.59783082,172.24,172.1,29.0442]
[1641034164852,34.35783082,172.24,172.08,10.0]
[1641034165052,1.242,172.23,172.07,77.6195]
[1641034165251,8.7145,172.19,172.07,77.6195]
[1641034165850,8.7145,172.19,172.07,78.1195]
[1641034166450,8.7145,172.19,172.11,8.7145]
[1641034166650,1.3371,172.21,172.07,79.54619368]
[1641034166850,1.3371,172.21,172.08,1.3449]
[1641034167249,1.3371,172.21,172.08,3.53159368]
[1641034167450,1.3371,172.21,172.08,2.1049]
[1641034167653,1.3371,172.21,172.12,8.7139]
[1641034167851,1.8371,172.21,172.12,9.2139]
[1641034168052,10.8104,172.21,172.08,29.0469]
[1641034168252,12.23709368,172.21,172.08,0.5]
[1641034168651,12.46061526,172.21,172.1,8.7149]
[1641034168950,12.46061526,172.21,172.1,9.2149]
[1641034169352,12.46061526,172.21,172.1,9.4749]
[1641034169552,8.7142,172.19,172.1,9.4749]
[1641034169752,1.65021526,172.2,172.1,9.4749]
[1641034170154,2.98731526,172.21,172.1,9.4749]
[1641034170553,11.70051526,172.21,172.1,9.4749]
[1641034170752,10.0503,172.21,172.1,9.4749]
[1641034171155,1.3371,172.21,172.1,9.4749]
[1641034173258,1.3371,172.21,172.1,10.90159368]
[1641034173488,1.3224,172.22,172.1,10.90159368]
[1641034174459,1.3224,172.22,172.1,9.4749]
[1641034174861,1.3224,172.22,172.1,9.2149]
[1641034175662,10.0352,172.22,172.1,9.2149]
[1641034175862,10.5352,172.22,172.1,9.2149]
[1641034176064,11.68541526,172.22,172.1,9.4749]
[1641034176363,12.18541526,172.22,172.1,9.4749]
[1641034176564,11.68541526,172.22,172.1,10.90159368]
[1641034176764,2.97261526,172.22,172.1,10.90159368]
[1641034176963,1.65021526,172.22,172.1,10.90159368]
[1641034177164,1.65021526,172.21,172.1,10.90159368]
[1641034177667,1.65021526,172.21,172.1,12.23779368]
[1641034177867,1.3428,172.23,172.1,12.23779368]
[1641034178066,23.45933714,172.24,172.1,12.23779368]
[1641034178571,25.1095524,172.24,172.1,12.23779368]
[1641034179065,25.1095524,172.24,172.1,22.18829176]
[1641034181494,23.45933714,172.24,172.1,22.18829176]
[1641034185602,23.45933714,172.24,172.1,21.92829176]
[1641034185799,23.45933714,172.24,172.1,21.42829176]
[1641034185999,32.43093714,172.24,172.1,8.7149]
[1641034186199,34.35763082,172.24,172.07,77.6195]
[1641034186399,1.2921,172.23,172.07,77.6195]
[1641034186600,1.5521,172.23,172.07,77.6195]
[1641034186800,1.65021526,172.21,172.04,169.4516]
[1641034187003,8.7176,172.13,172.04,169.4516]
[1641034187203,8.7176,172.13,172.04,74.9516]
[1641034187204,27.14481822,172.12,172.04,74.9516]
[1641034187502,27.40481822,172.12,172.04,74.9516]
[1641034188103,36.12301822,172.12,172.04,74.9516]
[1641034188303,36.12301822,172.12,172.04,75.2116]
[1641034189301,35.86301822,172.12,172.04,75.2116]
[1641034189900,1.65021526,172.14,172.04,75.2116]
[1641034190101,1.65021526,172.14,172.04,75.7116]
[1641034190504,1.65021526,172.15,172.04,84.4295]
[1641034190708,1.65021526,172.15,172.04,83.9295]
[1641034190904,31.95455385,172.14,172.04,83.9295]
[1641034191104,8.718,172.12,172.04,83.9295]
[1641034191905,33.25215385,172.14,172.04,83.9295]
[1641034192106,34.90236911,172.14,172.04,84.4295]
[1641034192409,1.65021526,172.14,172.04,84.4295]
[1641034192611,1.65021526,172.18,172.04,84.4295]
[1641034193311,29.4187505,172.17,172.1,8.715]
[1641034193512,30.7430505,172.17,172.1,8.975]
[1641034194411,39.4585505,172.17,172.1,0.26]
[1641034194616,39.4585505,172.17,172.09,82.248404]
[1641034194817,41.10876576,172.17,172.09,82.248404]
[1641034195017,41.36876576,172.17,172.09,82.248404]
[1641034195417,1.65021526,172.15,172.09,82.248404]
[1641034195614,8.7171,172.14,172.09,82.248404]
[1641034196614,9.2171,172.14,172.09,82.248404]
[1641034197516,10.86731526,172.14,172.09,82.248404]
[1641034197717,10.36731526,172.14,172.09,82.248404]
[1641034197918,1.65021526,172.15,172.09,82.248404]
[1641034198619,32.39326576,172.17,172.09,82.248404]
[1641034199620,32.39326576,172.17,172.09,90.963904]
[1641034199818,31.06896576,172.17,172.09,91.463904]
[1641034200218,29.4187505,172.17,172.09,91.463904]
[1641034200418,29.4187505,172.17,172.09,90.963904]
[1641034200818,29.4187505,172.17,172.09,91.463904]
[1641034201029,29.4187505,172.17,172.09,90.963904]
[1641034201517,29.6787505,172.17,172.09,82.248404]
[1641034201918,30.1787505,172.17,172.09,81.988404]
[1641034202119,40.54436576,172.17,172.09,81.988404]
[1641034202522,1.65021526,172.15,172.09,81.988404]
[1641034202923,2.15021526,172.15,172.09,81.988404]
[1641034203321,8.7177,172.13,172.09,82.248404]
[1641034204325,1.65021526,172.15,172.09,82.248404]
[1641034204526,8.7169,172.14,172.09,82.248404]
[1641034205625,8.7169,172.14,172.09,81.988404]
[1641034206926,8.7169,172.14,172.09,82.248404]
[1641034208854,8.7165,172.15,172.09,82.248404]
[1641034209852,8.7159,172.16,172.09,82.248404]
[1641034210255,8.9759,172.16,172.09,82.248404]
[1641034210755,9.4759,172.16,172.09,82.248404]
[1641034210955,9.2159,172.16,172.09,82.248404]
[1641034211755,11.12611526,172.16,172.09,82.248404]
[1641034212256,10.86611526,172.16,172.09,82.248404]
[1641034212460,11.12611526,172.16,172.09,82.248404]
[1641034212656,11.12611526,172.16,172.09,81.988404]
[1641034213057,1.65021526,172.15,172.09,81.988404]
[1641034213256,8.7186,172.12,172.09,81.988404]
[1641034213455,3.03022904,172.11,172.09,81.988404]
[1641034213658,27.66973496,172.1,172.09,81.988404]
[1641034214056,3.03022904,172.11,172.09,81.988404]
[1641034214956,25.73669496,172.11,172.09,81.988404]
[1641034217466,3.03022904,172.11,172.09,82.248404]
[1641034217671,1.65021526,172.14,172.1,3.03219997]
[1641034218066,1.65021526,172.16,172.1,3.29219997]
[1641034218494,31.63763003,172.15,172.1,3.29219997]
[1641034219275,1.65021526,172.16,172.1,12.00769997]
[1641034219476,1.65021526,172.16,172.1,12.50769997]
[1641034219669,1.65021526,172.18,172.1,12.50769997]
[1641034219974,1.65021526,172.18,172.11,78.06299368]
[1641034220170,1.65021526,172.26,172.11,78.06299368]
[1641034220370,22.43097933,172.23,172.18,8.7109]
[1641034220571,22.43097933,172.23,172.18,8.9709]
[1641034221669,22.43097933,172.23,172.18,8.7109]
[1641034221869,22.69097933,172.23,172.16,8.7124]
[1641034222069,22.43097933,172.23,172.16,8.7124]
[1641034222578,22.43097933,172.23,172.16,9.4724]
[1641034222777,22.43097933,172.23,172.16,8.9724]
[1641034222977,31.14377933,172.23,172.16,8.9724]
[1641034224880,31.14377933,172.23,172.16,8.7124]
[1641034225076,31.40377933,172.23,172.15,8.7133]
[1641034225479,31.40377933,172.23,172.15,8.9733]
[1641034225880,31.40377933,172.23,172.15,9.4733]
[1641034226106,31.40377933,172.23,172.15,8.9733]
[1641034226304,31.40377933,172.23,172.15,9.4733]
[1641034226509,31.40377933,172.23,172.15,8.9733]
[1641034226807,31.40377933,172.23,172.15,0.26]
[1641034227008,31.40377933,172.23,172.14,8.9738]
[1641034228011,31.40377933,172.23,172.14,0.26]
[1641034228411,31.90377933,172.23,172.13,0.26]
[1641034228610,31.90377933,172.23,172.11,76.8963]
[1641034228811,31.90377933,172.23,172.11,77.3963]
[1641034230712,31.90377933,172.23,172.13,8.7143]
[1641034231114,31.90377933,172.23,172.13,8.9743]
[1641034231816,31.40377933,172.23,172.13,8.9743]
[1641034233620,31.90377933,172.23,172.13,8.9743]
[1641034234319,31.64377933,172.23,172.13,8.9743]
[1641034234517,22.43097933,172.23,172.13,9.4743]
[1641034234917,8.7121,172.24,172.13,9.4743]
[1641034236221,35.82183756,172.25,172.13,9.4743]
[1641034237623,36.08183756,172.25,172.13,9.4743]
[1641034237825,36.58183756,172.25,172.13,8.7143]
[1641034238425,1.65021526,172.23,172.13,9.2143]
[1641034239026,1.65021526,172.23,172.13,9.4743]
[1641034239827,28.76035282,172.25,172.13,9.4743]
[1641034240627,8.7126,172.24,172.13,9.4743]
[1641034245034,35.82183756,172.25,172.13,9.4743]
[1641034247138,35.82183756,172.25,172.13,9.2143]
[1641034247343,36.58183756,172.25,172.13,9.2143]
[1641034247738,1.65021526,172.24,172.13,9.2143]
[1641034247939,8.7138,172.21,172.13,9.2143]
[1641034248541,8.7138,172.21,172.13,9.4743]
[1641034248938,10.36321526,172.23,172.13,9.4743]
[1641034249138,1.65021526,172.23,172.13,9.4743]
[1641034249539,1.65021526,172.23,172.13,10.90099368]
[1641034249944,27.11013756,172.25,172.13,10.90099368]
[1641034251746,8.7112,172.26,172.13,9.4743]
[1641034251944,1.65021526,172.27,172.13,10.90099368]
[1641034252144,2.15021526,172.27,172.13,10.90099368]
[1641034252380,1.65021526,172.28,172.13,10.90099368]
[1641034252779,24.67227118,172.28,172.14,1.3603]
[1641034252983,33.38267118,172.28,172.21,8.71]
[1641034253380,33.38267118,172.28,172.21,0.26]
[1641034253580,33.64267118,172.28,172.18,76.1982]
[1641034253780,32.49245592,172.28,172.18,76.1982]
[1641034254582,32.49245592,172.28,172.18,84.9099]
[1641034254782,8.7118,172.25,172.18,84.9099]
[1641034255185,1.65021526,172.27,172.18,84.9099]
[1641034255383,1.65021526,172.27,172.18,85.4099]
[1641034255783,1.42669368,172.32,172.18,85.4099]
[1641034255784,1.65021526,172.29,172.18,85.4099]
[1641034256686,1.65021526,172.29,172.18,86.6431]
[1641034256687,27.06676024,172.28,172.18,86.6431]
[1641034257486,1.65021526,172.3,172.18,86.6431]
[1641034262898,1.65021526,172.3,172.18,88.06979368]
[1641034263921,25.90487453,172.31,172.18,88.06979368]
[1641034264322,1.65021526,172.31,172.18,88.06979368]
[1641034266824,1.65021526,172.32,172.18,88.06979368]
[1641034267429,1.65021526,172.32,172.18,97.81055805]
[1641034267626,1.65021526,172.32,172.19,9.43877718]
[1641034268031,1.526e-05,172.32,172.25,8.7021]
[1641034268230,94.5,172.38,172.25,8.7021]
[1641034268427,94.5,172.38,172.26,11.16745805]
[1641034268628,94.5,172.38,172.26,20.60623523]
[1641034268926,94.5,172.38,172.27,9.74076437]
[1641034268927,45.1042,172.38,172.27,9.74076437]
[1641034269127,1.526e-05,172.39,172.28,68.0]
[1641034269330,94.5,172.44,172.33,8.6997]
[1641034269526,94.5,172.44,172.33,8.9597]
[1641034269726,94.5,172.44,172.34,1.42669368]
[1641034269927,94.5,172.44,172.34,1.92669368]
[1641034270231,2.333395,172.45,172.39,8.6978]
[1641034270432,24.61928636,172.44,172.31,1.42669368]
[1641034270626,24.61928636,172.44,172.29,77.1119]
[1641034270827,24.61928636,172.44,172.3,10.0]
[1641034271229,24.61928636,172.44,172.29,77.1119]
[1641034271429,24.61928636,172.44,172.35,8.7017]
[1641034271829,24.61928636,172.44,172.35,9.4617]
[1641034274835,2.333395,172.45,172.35,9.4617]
[1641034275035,2.333395,172.45,172.35,10.88839368]
[1641034275436,2.333395,172.45,172.35,9.4617]
[1641034275638,2.333395,172.45,172.35,10.88839368]
[1641034275838,24.47070188,172.44,172.35,10.88839368]
[1641034276240,2.333395,172.45,172.35,10.88839368]
[1641034278246,2.333395,172.45,172.35,9.4617]
[1641034281441,2.333395,172.45,172.35,9.2017]
[1641034281944,2.333395,172.45,172.35,10.62839368]
[1641034282946,2.333395,172.45,172.35,10.88839368]
[1641034285954,2.333395,172.45,172.35,9.4617]
[1641034286160,2.333395,172.45,172.35,10.88839368]
[1641034291187,2.333395,172.45,172.35,8.7017]
[1641034291375,3.093395,172.45,172.34,75.9509]
[1641034291575,3.093395,172.45,172.32,8.703]
[1641034292377,11.794695,172.45,172.28,1.42669368]
[1641034292579,11.794695,172.45,172.3,0.5]
[1641034293176,1.3324,172.44,172.3,8.7042]
[1641034293377,1.8324,172.44,172.3,9.2042]
[1641034293578,2.0924,172.44,172.3,9.2042]
[1641034294579,8.7045,172.39,172.3,9.4642]
[1641034294781,1.5924,172.44,172.3,9.4642]
[1641034294980,0.26,172.44,172.36,8.702]
[1641034295381,4.369495,172.45,172.36,8.962]
[1641034295880,8.7018,172.44,172.36,8.962]
[1641034296080,8.9618,172.44,172.36,9.462]
[1641034297588,3.609495,172.45,172.36,9.462]
[1641034299691,12.310795,172.45,172.36,9.462]
[1641034300488,3.609495,172.45,172.36,9.462]
[1641034301490,3.609495,172.45,172.36,10.88869368]
[1641034301893,3.609495,172.45,172.36,9.462]
[1641034303494,2.333395,172.45,172.36,10.88869368]
[1641034305998,2.333395,172.45,172.36,9.462]
[1641034308736,2.333395,172.45,172.36,10.88869368]
[1641034311932,2.333395,172.45,172.36,9.462]
[1641034312330,2.333395,172.45,172.36,9.202]
[1641034313835,2.333395,172.45,172.36,9.462]
[1641034317141,2.333395,172.45,172.36,10.88869368]
[1641034330755,2.333395,172.45,172.36,20.32747086]
[1641034331457,2.333395,172.45,172.36,21.60707086]
[1641034337887,2.333395,172.45,172.36,31.34699774]
[1641034341286,2.333395,172.45,172.41,8.6962]
[1641034341486,2.333395,172.45,172.41,9.4562]
[1641034345800,2.333395,172.45,172.41,9.1962]
[1641034347003,2.333395,172.45,172.41,9.4562]
[1641034375071,2.333395,172.45,172.41,8.6962]
[1641034375270,2.333395,172.45,172.32,6.05406986]
[1641034375470,2.333395,172.45,172.31,72.18]
[1641034375674,2.333395,172.45,172.32,10.0]
[1641034375872,1.266,172.44,172.32,10.0]
[1641034376069,1.526,172.44,172.27,8.7153]
[1641034376271,3.45269368,172.44,172.27,29.0105]
[1641034376473,3.45269368,172.44,172.27,29.5105]
[1641034376673,3.19269368,172.44,172.32,8.7037]
[1641034376871,3.0159,172.44,172.32,9.2037]
[1641034377273,8.7032,172.41,172.32,9.2037]
[1641034377475,3.0159,172.44,172.32,9.2037]
[1641034377876,3.0159,172.44,172.32,9.4637]
[1641034378574,8.7026,172.42,172.32,9.4637]
[1641034378774,25.46959908,172.41,172.32,9.4637]
[1641034380398,25.46959908,172.41,172.29,29.0085]
[1641034380399,34.67309908,172.41,172.31,8.7041]
[1641034380600,34.93309908,172.41,172.29,0.5]
[1641034380798,1.2825,172.4,172.29,0.5]
[1641034381001,1.7825,172.4,172.29,0.5]
[1641034381198,1.7825,172.4,172.26,29.5136]
[1641034381398,8.7052,172.37,172.29,8.7048]
[1641034381602,1.2825,172.4,172.26,29.5136]
[1641034382399,8.7042,172.39,172.31,8.7038]
[1641034382801,8.7042,172.39,172.31,9.4638]
[1641034383198,1.2825,172.4,172.31,9.4638]
[1641034385404,1.2825,172.4,172.31,9.2038]
[1641034385603,9.9862,172.4,172.31,9.2038]
[1641034385902,9.9862,172.4,172.31,8.7038]
[1641034387006,9.9862,172.4,172.31,8.9638]
[1641034389409,9.9862,172.4,172.31,9.4638]
[1641034390510,9.9862,172.4,172.31,8.9638]
[1641034392211,1.822199,172.33,172.31,8.9638]
[1641034392411,1.822199,172.33,172.32,3.03219997]
[1641034392611,1.822199,172.33,172.32,3.29219997]
[1641034400716,1.822199,172.33,172.32,3.79219997]
[1641034401115,1.822199,172.33,172.32,3.29219997]
[1641034401917,1.822199,172.33,172.32,12.49579997]
[1641034406225,1.822199,172.33,172.32,11.99579997]
[1641034406423,1.822199,172.33,172.32,3.03219997]
[1641034406623,4.85242804,172.33,172.31,8.7042]
[1641034407427,1.822199,172.33,172.32,3.03219997]
[1641034407825,1.822199,172.33,172.32,3.29219997]
[1641034411230,4.85242804,172.33,172.32,8.9637]
[1641034411435,1.822199,172.33,172.32,11.99589997]
[1641034411931,1.2625,172.37,172.32,11.99589997]
[1641034412231,26.33398538,172.38,172.32,11.99589997]
[1641034412432,26.33398538,172.38,172.32,12.49589997]
[1641034412931,26.33398538,172.38,172.32,11.99589997]
[1641034413434,26.33398538,172.38,172.32,12.49589997]
[1641034413858,26.33398538,172.38,172.32,11.99589997]
[1641034414262,26.33398538,172.38,172.32,12.49589997]
[1641034421668,26.33398538,172.38,172.32,10.68415127]
[1641034422268,26.33398538,172.38,172.32,3.53219997]
[1641034422669,26.33398538,172.38,172.32,3.03219997]
[1641034423278,35.03868538,172.38,172.32,3.03219997]
[1641034423673,26.33398538,172.38,172.32,3.29219997]
[1641034423873,26.33398538,172.38,172.32,3.79219997]
[1641034424374,35.03848538,172.38,172.32,3.03219997]
[1641034425972,35.03848538,172.38,172.32,3.29219997]
[1641034432306,35.03848538,172.38,172.28,87.1158]
[1641034432482,35.79848538,172.38,172.28,8.7055]
[1641034433079,1.233,172.37,172.28,8.7055]
[1641034433281,8.7062,172.35,172.28,8.7055]
[1641034433679,8.7062,172.35,172.24,1.3161]
[1641034433879,9.4662,172.35,172.21,29.0232]
[1641034434079,1.2593,172.34,172.21,0.5]
[1641034434580,39.74147472,172.31,172.21,0.5]
[1641034434779,39.74147472,172.31,172.2,0.5]
[1641034434979,39.74147472,172.31,172.19,2.0097]
[1641034435182,31.03307472,172.31,172.19,1.2497]
[1641034435380,31.03307472,172.31,172.2,1.2855]
[1641034435580,31.03307472,172.31,172.2,1.5455]
[1641034435784,31.03307472,172.31,172.2,2.0455]
[1641034436580,31.03307472,172.31,172.25,8.7075]
[1641034436979,31.03307472,172.31,172.25,9.4675]
[1641034437182,31.03307472,172.31,172.25,0.76]
[1641034437386,31.03307472,172.31,172.25,0.26]
[1641034437581,31.03307472,172.31,172.2,31.0699]
[1641034437781,31.03307472,172.31,172.24,8.7079]
[1641034437982,32.28847472,172.31,172.24,8.9679]
[1641034438284,32.28847472,172.31,172.24,9.4679]
[1641034439808,40.99657472,172.31,172.24,9.4679]
[1641034440185,40.99657472,172.31,172.24,0.76]
[1641034440382,40.99657472,172.31,172.24,0.26]
[1641034440588,40.99657472,172.31,172.22,0.5]
[1641034440787,40.99657472,172.31,172.2,2.0455]
[1641034441584,40.99657472,172.31,172.23,8.7083]
[1641034441784,40.99657472,172.31,172.2,2.0455]
[1641034441984,40.99657472,172.31,172.2,0.76]
[1641034442190,40.99657472,172.31,172.2,0.26]
[1641034442387,41.49657472,172.31,172.18,76.4439]
[1641034442587,41.75657472,172.31,172.18,0.5]
[1641034442988,41.75657472,172.31,172.12,150.5506]
[1641034443490,41.75657472,172.31,172.12,151.0506]
[1641034443887,41.75657472,172.31,172.16,8.712]
[1641034444092,41.75657472,172.31,172.16,8.972]
[1641034445888,41.75657472,172.31,172.12,150.5506]
[1641034446195,41.75657472,172.31,172.04,449.28153729]
[1641034446196,43.1832684,172.31,172.04,449.28153729]
[1641034446391,43.1832684,172.31,172.05,149.897]
[1641034446589,5.64961691,172.3,172.05,149.897]
[1641034446889,22.8768112,172.17,172.04,449.28153729]
[1641034447190,23.1368112,172.17,172.05,8.7167]
[1641034447388,23.6368112,172.17,172.05,0.5]
[1641034447789,1.2403,172.27,172.05,0.5]
[1641034447987,8.7161,172.16,172.05,1.83]
[1641034448188,8.7161,172.16,172.05,1.33]
[1641034448488,8.7161,172.16,172.05,1.83]
[1641034448688,27.86641466,172.2,172.05,10.547]
[1641034448891,36.58101466,172.2,172.05,11.97369368]
[1641034449090,8.7146,172.2,172.05,29.74933621]
[1641034449491,1.2988,172.19,172.05,30.00933621]
[1641034450193,2.9995857,172.27,172.05,30.00933621]
[1641034450393,1.243,172.24,172.05,35.26335555]
[1641034450994,2.9995857,172.27,172.05,35.26335555]
[1641034451194,28.41808074,172.27,172.05,35.26335555]
[1641034451396,8.7116,172.26,172.05,35.26335555]
[1641034451596,10.0129,172.26,172.05,35.26335555]
[1641034452503,10.0129,172.26,172.06,10.0]
[1641034452904,10.0129,172.26,172.16,8.7111]
[1641034453102,10.0129,172.26,172.16,8.9711]
[1641034453303,10.0129,172.26,172.16,9.4711]
[1641034453503,10.0129,172.26,172.16,0.76]
[1641034453703,10.0129,172.26,172.16,0.26]
[1641034453906,10.7729,172.26,172.12,8.713]
[1641034454931,10.7729,172.26,172.09,79.999]
[1641034455133,10.7729,172.26,172.09,80.259]
[1641034455630,10.7729,172.26,172.1,8.7141]
[1641034455932,10.7729,172.26,172.1,9.2141]
[1641034456132,10.5129,172.26,172.1,9.4741]
[1641034456832,10.2729,172.26,172.11,1.2979]
[1641034457036,10.2729,172.26,172.11,1.5579]
[1641034457234,10.2729,172.26,172.11,2.0579]
[1641034458236,10.7729,172.26,172.11,2.0579]
[1641034458434,10.7729,172.26,172.11,10.7716]
[1641034459336,10.5129,172.26,172.11,10.7716]
[1641034459735,10.0129,172.26,172.11,10.7716]
[1641034460336,10.5129,172.26,172.11,10.7716]
[1641034461338,10.7729,172.26,172.11,10.7716]
[1641034461839,10.2729,172.26,172.11,10.7716]
[1641034463542,10.2729,172.26,172.11,10.5116]
[1641034463741,10.7729,172.26,172.11,9.2137]
[1641034464345,10.7729,172.26,172.11,8.7137]
[1641034464941,10.7729,172.26,172.09,86.9458]
[1641034465142,10.7729,172.26,172.09,87.4458]
[1641034465543,1.42669368,172.25,172.09,0.5]
[1641034465742,8.716,172.17,172.09,0.5]
[1641034465944,8.716,172.17,172.07,1.7987]
[1641034465945,28.24534435,172.16,172.07,1.7987]
[1641034466142,28.24534435,172.16,172.07,1.2987]
[1641034466342,28.24534435,172.16,172.07,1.7987]
[1641034466545,28.24534435,172.16,172.07,2.0587]
[1641034467143,8.7168,172.15,172.07,2.0587]
[1641034468547,8.7168,172.15,172.07,1.7987]
[1641034469248,8.7168,172.15,172.07,10.5149]
[1641034470047,8.7168,172.15,172.07,10.7749]
[1641034470247,1.2309,172.18,172.07,10.7749]
[1641034470248,8.7161,172.17,172.07,10.7749]
[1641034470748,1.2309,172.18,172.07,10.7749]
[1641034471158,73.8800857,172.25,172.07,10.7749]
[1641034471356,24.2533544,172.21,172.07,10.7749]
[1641034472557,32.9670544,172.21,172.07,10.7749]
[1641034472956,1.3592,172.2,172.07,10.7749]
[1641034473456,0.5,172.25,172.07,10.7749]
[1641034473681,1.2942,172.24,172.07,12.20159368]
[1641034474285,30.79327671,172.23,172.07,12.20159368]
[1641034474482,39.50577671,172.23,172.07,12.20159368]
[1641034476887,1.2286,172.22,172.07,12.20159368]
[1641034477388,9.9416,172.22,172.07,12.20159368]
[1641034477987,9.9416,172.22,172.07,10.7749]
[1641034480892,10.4416,172.22,172.07,10.7749]
[1641034484999,9.9416,172.22,172.07,10.7749]
[1641034485199,30.79327671,172.23,172.08,1.42669368]
[1641034485398,30.79327671,172.23,172.15,8.7121]
[1641034485598,30.79327671,172.23,172.15,8.9721]
[1641034485798,30.79327671,172.23,172.15,9.4721]
[1641034486407,39.50567671,172.23,172.15,8.9721]
[1641034486704,39.50567671,172.23,172.14,8.7131]
[1641034486904,39.76567671,172.23,172.14,8.7131]
[1641034487104,39.76567671,172.23,172.14,8.9731]
[1641034487405,40.26567671,172.23,172.14,0.26]
[1641034487608,1.3119,172.22,172.09,1.5214]
[1641034487805,8.7139,172.2,172.12,8.7137]
[1641034488006,8.7139,172.2,172.12,8.9737]
[1641034489010,8.7139,172.2,172.12,0.26]
[1641034489411,8.7139,172.2,172.09,78.0187]
[1641034490712,8.7139,172.2,172.11,8.7146]
[1641034490912,8.7139,172.2,172.11,9.2146]
[1641034491112,8.7139,172.2,172.11,9.4746]
[1641034493734,8.7139,172.2,172.11,8.9746]
[1641034493936,8.7139,172.2,172.11,9.4746]
[1641034494634,8.7139,172.2,172.11,8.9746]
[1641034494835,8.7139,172.2,172.11,9.4746]
[1641034496438,8.7139,172.2,172.11,0.26]
[1641034496839,8.7139,172.2,172.09,78.0187]
[1641034498637,8.7139,172.2,172.11,8.7146]
[1641034498839,8.7139,172.2,172.11,9.2146]
[1641034499038,8.7139,172.2,172.11,9.4746]
[1641034499240,8.7139,172.2,172.11,8.9746]
[1641034501447,8.7139,172.2,172.11,9.4746]
[1641034502948,8.7139,172.2,172.11,0.26]
[1641034503246,9.2139,172.2,172.11,0.26]
[1641034503450,9.2139,172.2,172.1,10.2344]
[1641034503847,9.2139,172.2,172.1,1.5193]
[1641034504047,9.4739,172.2,172.09,77.2587]
[1641034504249,9.4739,172.2,172.09,77.7587]
[1641034504748,9.4739,172.2,172.09,77.2587]
[1641034504947,9.4739,172.2,172.09,77.7587]
[1641034505348,9.4739,172.2,172.09,78.0187]
[1641034505550,10.7469,172.2,172.09,78.0187]
[1641034505950,10.7469,172.2,172.09,77.7587]
[1641034506150,10.2469,172.2,172.09,77.7587]
[1641034507150,10.2469,172.2,172.09,0.5]
[1641034507349,10.7469,172.2,172.07,9.2166]
[1641034508154,10.7469,172.2,172.07,8.7166]
[1641034508552,10.7469,172.2,172.07,8.9766]
[1641034510855,10.7469,172.2,172.07,9.4766]
[1641034511754,10.7469,172.2,172.09,8.7157]
[1641034512157,10.7469,172.2,172.09,8.9757]
[1641034515560,10.7469,172.2,172.09,0.26]
[1641034515963,10.7469,172.2,172.07,0.26]
[1641034516358,10.7469,172.2,172.05,1.8554]
[1641034516560,10.7469,172.2,172.05,2.1154]
[1641034516860,10.7469,172.2,172.05,10.8331]
[1641034521671,10.4869,172.2,172.05,10.8331]
[1641034523074,10.7469,172.2,172.05,10.8331]
[1641034524175,10.7469,172.2,172.05,10.5731]
[1641034525578,10.7469,172.2,172.05,10.8331]
[1641034533305,10.7469,172.2,172.05,10.5731]
[1641034534513,10.7469,172.2,172.05,10.8331]
[1641034536911,10.4869,172.2,172.05,10.8331]
[1641034538314,10.7469,172.2,172.05,10.8331]
[1641034543120,10.4869,172.2,172.05,10.8331]
[1641034552560,8.7139,172.2,172.05,10.8331]
[1641034552758,8.7132,172.21,172.05,21.27749834]
[1641034552960,32.44246241,172.23,172.05,26.54803251]
[1641034552961,30.79327671,172.23,172.05,26.54803251]
[1641034554361,8.7131,172.22,172.05,26.54803251]
[1641034555663,30.79327671,172.23,172.05,26.54803251]
[1641034555664,1.2768,172.21,172.05,26.54803251]